[Event "*** Titled Tuesday Blitz"]
[Site "Chess.com"]
[Date "2021.02.09"]
[Round "6"]
[White "KononenkoD"]
[Black "dpopadic"]
[Result "1-0"]
[WhiteElo "2527"]
[BlackElo "2327"]
[TimeControl "180+1"]
[EndTime "11:08:14 PST"]
[Termination "KononenkoD won on time"]

1. d4 {[%clk 0:03:00.9]} 1... Nf6 {[%clk 0:02:59.2]} 2. c4 {[%clk 0:03:01.3]}
2... g6 {[%clk 0:02:59.3]} 3. Nc3 {[%clk 0:03:00.5]} 3... Bg7 {[%clk 0:02:59.8]}
4. Nf3 {[%clk 0:03:00.1]} 4... d6 {[%clk 0:03:00.4]} 5. g3 {[%clk 0:03:00.6]}
5... O-O {[%clk 0:03:00.7]} 6. Bg2 {[%clk 0:03:01.2]} 6... Nbd7 {[%clk
0:03:00.9]} 7. O-O {[%clk 0:03:01.7]} 7... e5 {[%clk 0:03:01.3]} 8. e4 {[%clk
0:03:02.3]} 8... exd4 {[%clk 0:03:01.4]} 9. Nxd4 {[%clk 0:03:03.2]} 9... Re8
{[%clk 0:03:01.6]} 10. Re1 {[%clk 0:03:02.4]} 10... a6 {[%clk 0:03:01.8]} 11. h3
{[%clk 0:03:01.3]} 11... Rb8 {[%clk 0:03:01.5]} 12. Be3 {[%clk 0:02:59.4]} 12...
c5 {[%clk 0:02:59.7]} 13. Nc2 {[%clk 0:02:52.4]} 13... Ne5 {[%clk 0:02:59.5]}
14. b3 {[%clk 0:02:51.9]} 14... b5 {[%clk 0:02:51.8]} 15. f4 {[%clk 0:02:41.5]}
15... Ned7 {[%clk 0:02:51.3]} 16. Qxd6 {[%clk 0:02:34.6]} 16... b4 {[%clk
0:02:51.1]} 17. e5 {[%clk 0:02:20]} 17... bxc3 {[%clk 0:02:30.8]} 18. exf6
{[%clk 0:02:19]} 18... Bxf6 {[%clk 0:02:30.3]} 19. Bxc5 {[%clk 0:02:14.3]} 19...
Bb7 {[%clk 0:01:48.9]} 20. Rxe8+ {[%clk 0:02:05.5]} 20... Qxe8 {[%clk
0:01:47.6]} 21. Re1 {[%clk 0:02:04.8]} 21... Qc8 {[%clk 0:01:31.5]} 22. Bxb7
{[%clk 0:01:58.9]} 22... Qxb7 {[%clk 0:01:06.6]} 23. Bd4 {[%clk 0:01:35.7]}
23... Bxd4+ {[%clk 0:01:03.7]} 24. Qxd4 {[%clk 0:01:35.3]} 24... Nf8 {[%clk
0:00:32.2]} 25. Qxc3 {[%clk 0:01:33.6]} 25... Rd8 {[%clk 0:00:31.7]} 26. Qe3
{[%clk 0:01:16.5]} 26... Ne6 {[%clk 0:00:28.6]} 27. c5 {[%clk 0:01:11.4]} 27...
Qd5 {[%clk 0:00:25.4]} 28. b4 {[%clk 0:01:07]} 28... Qxa2 {[%clk 0:00:23.6]} 29.
Qc3 {[%clk 0:01:06.9]} 29... Qd5 {[%clk 0:00:19.4]} 30. Re2 {[%clk 0:01:01.1]}
30... a5 {[%clk 0:00:17.3]} 31. bxa5 {[%clk 0:01:00.3]} 31... Nxc5 {[%clk
0:00:15.1]} 32. Ne3 {[%clk 0:00:51.3]} 32... Qd6 {[%clk 0:00:10]} 33. Ng4 {[%clk
0:00:49.2]} 33... Qd4+ {[%clk 0:00:06.8]} 34. Qxd4 {[%clk 0:00:48.9]} 34... Rxd4
{[%clk 0:00:06.9]} 35. Ra2 {[%clk 0:00:48.1]} 35... Na6 {[%clk 0:00:06.8]} 36.
Kf2 {[%clk 0:00:47.2]} 36... Kg7 {[%clk 0:00:04.3]} 37. Ne5 {[%clk 0:00:42.4]}
37... Rb4 {[%clk 0:00:02.7]} 38. Ke3 {[%clk 0:00:40.5]} 38... Rb3+ {[%clk
0:00:02.4]} 39. Kf2 {[%clk 0:00:40.2]} 39... h5 {[%clk 0:00:01.4]} 40. h4 {[%clk
0:00:40.2]} 1-0

[Event "*** Titled Tuesday Blitz"]
[Site "Chess.com"]
[Date "2021.02.09"]
[Round "6"]
[White "NoGalloNoParty"]
[Black "onetowin"]
[Result "1-0"]
[WhiteElo "2360"]
[BlackElo "2026"]
[TimeControl "180+1"]
[EndTime "11:08:14 PST"]
[Termination "NoGalloNoParty won on time"]

1. d4 {[%clk 0:03:00.9]} 1... Nf6 {[%clk 0:02:58.5]} 2. Nf3 {[%clk 0:03:00.4]}
2... e6 {[%clk 0:02:58.7]} 3. c4 {[%clk 0:03:00.3]} 3... d5 {[%clk 0:02:58.5]}
4. g3 {[%clk 0:03:00.4]} 4... Be7 {[%clk 0:02:57.5]} 5. Bg2 {[%clk 0:03:00.7]}
5... O-O {[%clk 0:02:57.4]} 6. O-O {[%clk 0:03:01.2]} 6... dxc4 {[%clk
0:02:57.5]} 7. Qc2 {[%clk 0:03:00.9]} 7... a6 {[%clk 0:02:57.5]} 8. a4 {[%clk
0:03:00.6]} 8... Bd7 {[%clk 0:02:56.9]} 9. Qxc4 {[%clk 0:03:00.5]} 9... Bc6
{[%clk 0:02:56.1]} 10. Bg5 {[%clk 0:03:01.1]} 10... Bd5 {[%clk 0:02:44.4]} 11.
Qc1 {[%clk 0:02:57.9]} 11... c5 {[%clk 0:02:31.4]} 12. dxc5 {[%clk 0:02:47.8]}
12... Nbd7 {[%clk 0:02:31.2]} 13. Nc3 {[%clk 0:02:46.3]} 13... Nxc5 {[%clk
0:01:53.3]} 14. Nxd5 {[%clk 0:02:45]} 14... Nxd5 {[%clk 0:01:50.5]} 15. Qxc5
{[%clk 0:02:40.2]} 15... Bxc5 {[%clk 0:01:38.2]} 16. Bxd8 {[%clk 0:02:39.7]}
16... Rfxd8 {[%clk 0:01:39.1]} 17. Ne5 {[%clk 0:02:38]} 17... Bd4 {[%clk
0:01:32.4]} 18. Nd3 {[%clk 0:02:37.6]} 18... Rac8 {[%clk 0:01:22.3]} 19. Rac1
{[%clk 0:02:35]} 19... Bf6 {[%clk 0:01:08.2]} 20. Rfd1 {[%clk 0:02:14.6]} 20...
Be7 {[%clk 0:01:00.1]} 21. Kf1 {[%clk 0:02:03.8]} 21... b6 {[%clk 0:00:51.2]}
22. Rxc8 {[%clk 0:01:48.3]} 22... Rxc8 {[%clk 0:00:50.4]} 23. Bxd5 {[%clk
0:01:45.1]} 23... exd5 {[%clk 0:00:51.3]} 24. Nf4 {[%clk 0:01:43]} 24... d4
{[%clk 0:00:46.4]} 25. b3 {[%clk 0:01:30.2]} 25... Bc5 {[%clk 0:00:41.3]} 26.
Rc1 {[%clk 0:01:23]} 26... Rd8 {[%clk 0:00:30.2]} 27. Nd3 {[%clk 0:01:21.8]}
27... Rd5 {[%clk 0:00:27.2]} 28. b4 {[%clk 0:01:21.4]} 28... Bf8 {[%clk
0:00:21]} 29. Rc6 {[%clk 0:01:16.2]} 29... a5 {[%clk 0:00:13.5]} 30. b5 {[%clk
0:01:04.2]} 30... Bc5 {[%clk 0:00:10.3]} 31. Nxc5 {[%clk 0:00:44.8]} 31... Rxc5
{[%clk 0:00:06.3]} 32. Rxb6 {[%clk 0:00:43.4]} 32... Kf8 {[%clk 0:00:04.8]} 33.
Ra6 {[%clk 0:00:41.7]} 33... Ke7 {[%clk 0:00:04.8]} 34. Rxa5 {[%clk 0:00:41.6]}
34... Rc1+ {[%clk 0:00:03.2]} 35. Kg2 {[%clk 0:00:40.6]} 35... Rc2 {[%clk
0:00:04.1]} 36. Kf3 {[%clk 0:00:40.2]} 36... Kd6 {[%clk 0:00:05]} 37. Ra7 {[%clk
0:00:38.1]} 37... Ra2 {[%clk 0:00:01.7]} 38. Rxf7 {[%clk 0:00:32.6]} 1-0

[Event "*** Titled Tuesday Blitz"]
[Site "Chess.com"]
[Date "2021.02.09"]
[Round "6"]
[White "lacafi"]
[Black "ChessQueen"]
[Result "0-1"]
[WhiteElo "2210"]
[BlackElo "2784"]
[TimeControl "180+1"]
[EndTime "11:08:14 PST"]
[Termination "ChessQueen won on time"]

1. d4 {[%clk 0:03:00.9]} 1... Nf6 {[%clk 0:02:59.4]} 2. Nf3 {[%clk 0:02:59.6]}
2... e6 {[%clk 0:02:58.6]} 3. e3 {[%clk 0:02:57.5]} 3... b6 {[%clk 0:02:47.9]}
4. Bd3 {[%clk 0:02:57.5]} 4... Bb7 {[%clk 0:02:48]} 5. Nbd2 {[%clk 0:02:58]}
5... c5 {[%clk 0:02:46.9]} 6. Qe2 {[%clk 0:02:56.7]} 6... Be7 {[%clk 0:02:44.9]}
7. O-O {[%clk 0:02:55.8]} 7... Qc7 {[%clk 0:02:38.9]} 8. c3 {[%clk 0:02:54.5]}
8... h5 {[%clk 0:02:31.8]} 9. e4 {[%clk 0:02:50.4]} 9... d6 {[%clk 0:02:29.4]}
10. e5 {[%clk 0:02:39.3]} 10... Nd5 {[%clk 0:02:24.1]} 11. Ne4 {[%clk
0:02:35.4]} 11... dxe5 {[%clk 0:02:23.4]} 12. dxe5 {[%clk 0:02:29.2]} 12... Nc6
{[%clk 0:02:18.7]} 13. Nd6+ {[%clk 0:02:18]} 13... Bxd6 {[%clk 0:02:17.4]} 14.
exd6 {[%clk 0:02:16]} 14... Qxd6 {[%clk 0:02:17.7]} 15. Rd1 {[%clk 0:02:11]}
15... O-O-O {[%clk 0:02:11.4]} 16. Bg5 {[%clk 0:01:57.3]} 16... f6 {[%clk
0:02:10]} 17. c4 {[%clk 0:01:48]} 17... fxg5 {[%clk 0:01:59.1]} 18. cxd5 {[%clk
0:01:47]} 18... exd5 {[%clk 0:01:59.3]} 19. Nxg5 {[%clk 0:01:43.7]} 19... Nd4
{[%clk 0:01:50.8]} 20. Qd2 {[%clk 0:01:28.9]} 20... Rhf8 {[%clk 0:01:45.7]} 21.
b4 {[%clk 0:01:13.6]} 21... Qf4 {[%clk 0:01:40.2]} 22. Qxf4 {[%clk 0:01:10.1]}
22... Rxf4 {[%clk 0:01:39.7]} 23. bxc5 {[%clk 0:01:10.4]} 23... bxc5 {[%clk
0:01:39]} 24. Rac1 {[%clk 0:00:52.6]} 24... c4 {[%clk 0:01:18.2]} 25. Bf1 {[%clk
0:00:44.6]} 25... Rdf8 {[%clk 0:00:57.8]} 26. Bxc4 {[%clk 0:00:22.8]} 26... Kb8
{[%clk 0:00:56.3]} 27. g3 {[%clk 0:00:06.8]} 27... Rxf2 {[%clk 0:00:54.3]} 28.
Rxd4 {[%clk 0:00:06.4]} 28... dxc4 {[%clk 0:00:54.8]} 29. Ne4 {[%clk 0:00:04]}
29... Rxa2 {[%clk 0:00:46.2]} 30. Rcxc4 {[%clk 0:00:02.3]} 30... Ra1+ {[%clk
0:00:44.7]} 31. Kg2 {[%clk 0:00:02.3]} 31... Re1 {[%clk 0:00:43]} 32. Kh3 {[%clk
0:00:02.5]} 32... Rxe4 {[%clk 0:00:34.9]} 33. Rxe4 {[%clk 0:00:02.2]} 33... Bxe4
{[%clk 0:00:35.6]} 34. Rxe4 {[%clk 0:00:03]} 34... Rf5 {[%clk 0:00:29.2]} 35.
Kh4 {[%clk 0:00:03.1]} 35... a5 {[%clk 0:00:26.2]} 36. Re7 {[%clk 0:00:03.2]}
36... a4 {[%clk 0:00:26]} 37. Re4 {[%clk 0:00:01.2]} 37... Ra5 {[%clk
0:00:25.3]} 0-1

[Event "*** Titled Tuesday Blitz"]
[Site "Chess.com"]
[Date "2021.02.09"]
[Round "6"]
[White "Kiborg95"]
[Black "Alexander_Zubov"]
[Result "0-1"]
[WhiteElo "2714"]
[BlackElo "2979"]
[TimeControl "180+1"]
[EndTime "11:08:15 PST"]
[Termination "Alexander_Zubov won by resignation"]

1. e4 {[%clk 0:03:00.9]} 1... c5 {[%clk 0:02:58.5]} 2. Nc3 {[%clk 0:03:00.6]}
2... e6 {[%clk 0:02:58]} 3. Nf3 {[%clk 0:03:00.7]} 3... a6 {[%clk 0:02:57.7]} 4.
d4 {[%clk 0:03:01.2]} 4... cxd4 {[%clk 0:02:57.9]} 5. Nxd4 {[%clk 0:03:02.1]}
5... b5 {[%clk 0:02:57.9]} 6. Bd3 {[%clk 0:03:02.3]} 6... Qb6 {[%clk 0:02:57.5]}
7. Nb3 {[%clk 0:03:01.8]} 7... Qc7 {[%clk 0:02:57.4]} 8. O-O {[%clk 0:03:02.5]}
8... Bb7 {[%clk 0:02:57.6]} 9. Be3 {[%clk 0:02:52]} 9... Nf6 {[%clk 0:02:52.6]}
10. f4 {[%clk 0:02:45.4]} 10... d6 {[%clk 0:02:39.9]} 11. Qf3 {[%clk 0:02:13.8]}
11... Nbd7 {[%clk 0:02:31.6]} 12. Rae1 {[%clk 0:02:13.8]} 12... b4 {[%clk
0:02:24.6]} 13. Nd1 {[%clk 0:02:08.7]} 13... d5 {[%clk 0:02:11]} 14. Nf2 {[%clk
0:01:59.8]} 14... Be7 {[%clk 0:02:01.1]} 15. Bd4 {[%clk 0:01:54.6]} 15... dxe4
{[%clk 0:01:55.3]} 16. Nxe4 {[%clk 0:01:55.5]} 16... O-O {[%clk 0:01:53.8]} 17.
Qg3 {[%clk 0:01:37]} 17... g6 {[%clk 0:01:37.6]} 18. Ng5 {[%clk 0:01:22.4]}
18... Nc5 {[%clk 0:01:35.3]} 19. Qh3 {[%clk 0:01:13.2]} 19... h5 {[%clk
0:01:29.3]} 20. Kh1 {[%clk 0:00:39.4]} 20... Nxd3 {[%clk 0:01:22.3]} 21. cxd3
{[%clk 0:00:39.8]} 21... Ng4 {[%clk 0:01:09.2]} 22. Be5 {[%clk 0:00:26.5]} 22...
Nxe5 {[%clk 0:00:59]} 23. Rxe5 {[%clk 0:00:20.1]} 23... Bf6 {[%clk 0:00:58.6]}
24. d4 {[%clk 0:00:19.6]} 24... Rad8 {[%clk 0:00:51]} 25. Qe3 {[%clk 0:00:14.9]}
25... Qc2 {[%clk 0:00:44.4]} 26. Nd2 {[%clk 0:00:07.6]} 26... Qxb2 {[%clk
0:00:37]} 27. Nge4 {[%clk 0:00:08]} 27... Bg7 {[%clk 0:00:33.9]} 28. Nf3 {[%clk
0:00:04.1]} 28... Bxe4 {[%clk 0:00:31.7]} 29. Qxe4 {[%clk 0:00:04]} 29... Qxa2
{[%clk 0:00:30.3]} 30. Qe3 {[%clk 0:00:01.5]} 30... b3 {[%clk 0:00:21]} 31. Qe4
{[%clk 0:00:01.7]} 31... b2 {[%clk 0:00:20.3]} 32. Rg5 {[%clk 0:00:02.2]} 32...
Qa1 {[%clk 0:00:19.1]} 33. Rb1 {[%clk 0:00:02.4]} 33... Rc8 {[%clk 0:00:19.4]}
0-1

[Event "*** Titled Tuesday Blitz"]
[Site "Chess.com"]
[Date "2021.02.09"]
[Round "6"]
[White "salomez"]
[Black "shaheus"]
[Result "0-1"]
[WhiteElo "2201"]
[BlackElo "2400"]
[TimeControl "180+1"]
[EndTime "11:08:19 PST"]
[Termination "shaheus won on time"]

1. e4 {[%clk 0:03:00.9]} 1... c5 {[%clk 0:02:59.5]} 2. Nf3 {[%clk 0:03:00.3]}
2... Nc6 {[%clk 0:02:59.7]} 3. Bb5 {[%clk 0:02:59.7]} 3... g6 {[%clk 0:02:58.6]}
4. O-O {[%clk 0:02:59.3]} 4... Bg7 {[%clk 0:02:58.5]} 5. Re1 {[%clk 0:02:58.9]}
5... Nf6 {[%clk 0:02:57.6]} 6. e5 {[%clk 0:02:59.2]} 6... Nd5 {[%clk 0:02:56.8]}
7. Nc3 {[%clk 0:03:00.1]} 7... Nc7 {[%clk 0:02:52]} 8. Bxc6 {[%clk 0:02:59.9]}
8... dxc6 {[%clk 0:02:52.1]} 9. Ne4 {[%clk 0:03:00.1]} 9... Ne6 {[%clk
0:02:44.9]} 10. d3 {[%clk 0:02:56.8]} 10... O-O {[%clk 0:02:44.2]} 11. Be3
{[%clk 0:02:55.1]} 11... b6 {[%clk 0:02:44]} 12. Qd2 {[%clk 0:02:53.9]} 12...
Nd4 {[%clk 0:02:42.8]} 13. Nxd4 {[%clk 0:02:53.8]} 13... cxd4 {[%clk 0:02:42.9]}
14. Bh6 {[%clk 0:02:54.7]} 14... c5 {[%clk 0:02:36]} 15. Qf4 {[%clk 0:02:22.7]}
15... Bb7 {[%clk 0:02:20.1]} 16. Qh4 {[%clk 0:02:20.3]} 16... Bxe4 {[%clk
0:01:49.1]} 17. Rxe4 {[%clk 0:02:18.5]} 17... e6 {[%clk 0:01:48.1]} 18. Bg5
{[%clk 0:01:22.8]} 18... f6 {[%clk 0:01:48.2]} 19. exf6 {[%clk 0:01:21.3]} 19...
Bxf6 {[%clk 0:01:48.3]} 20. Bxf6 {[%clk 0:00:42.9]} 20... Qxf6 {[%clk 0:01:48]}
21. Qg3 {[%clk 0:00:30.8]} 21... Rae8 {[%clk 0:01:46.4]} 22. Rae1 {[%clk
0:00:29.5]} 22... Rf7 {[%clk 0:01:44.4]} 23. Re5 {[%clk 0:00:24.6]} 23... Kg7
{[%clk 0:01:35.9]} 24. f3 {[%clk 0:00:24.5]} 24... h6 {[%clk 0:01:34.3]} 25. Qg4
{[%clk 0:00:23.9]} 25... Rfe7 {[%clk 0:01:30]} 26. Qe4 {[%clk 0:00:23.5]} 26...
g5 {[%clk 0:01:23.2]} 27. b4 {[%clk 0:00:22.1]} 27... cxb4 {[%clk 0:00:55.7]}
28. Qxd4 {[%clk 0:00:21.6]} 28... Rc8 {[%clk 0:00:49.6]} 29. R1e2 {[%clk
0:00:16.2]} 29... Rc5 {[%clk 0:00:44]} 30. R5e4 {[%clk 0:00:10.9]} 30... Qxd4+
{[%clk 0:00:41.2]} 31. Rxd4 {[%clk 0:00:11.8]} 31... a5 {[%clk 0:00:41.3]} 32.
Rd6 {[%clk 0:00:10.4]} 32... b5 {[%clk 0:00:36.1]} 33. d4 {[%clk 0:00:04]} 33...
Rc4 {[%clk 0:00:34.1]} 34. d5 {[%clk 0:00:04.1]} 34... Rd4 {[%clk 0:00:30.5]}
35. Rdxe6 {[%clk 0:00:03.6]} 35... Rxe6 {[%clk 0:00:29.8]} 36. dxe6 {[%clk
0:00:03.9]} 36... Kf8 {[%clk 0:00:30]} 37. e7+ {[%clk 0:00:02.3]} 37... Ke8
{[%clk 0:00:30.1]} 0-1

[Event "*** Titled Tuesday Blitz"]
[Site "Chess.com"]
[Date "2021.02.09"]
[Round "6"]
[White "VladimirBugayev"]
[Black "stasiek18"]
[Result "1-0"]
[WhiteElo "2283"]
[BlackElo "2374"]
[TimeControl "180+1"]
[EndTime "11:08:19 PST"]
[Termination "VladimirBugayev won on time"]

1. e4 {[%clk 0:03:00.9]} 1... e5 {[%clk 0:02:58.3]} 2. Nf3 {[%clk 0:03:00]} 2...
Nc6 {[%clk 0:02:58.4]} 3. d4 {[%clk 0:02:59.6]} 3... exd4 {[%clk 0:02:58.2]} 4.
Nxd4 {[%clk 0:03:00.2]} 4... Nf6 {[%clk 0:02:58.3]} 5. Nxc6 {[%clk 0:03:00.6]}
5... bxc6 {[%clk 0:02:59.2]} 6. e5 {[%clk 0:03:00.4]} 6... Nd5 {[%clk
0:02:59.6]} 7. c4 {[%clk 0:02:57.3]} 7... Nb6 {[%clk 0:02:58]} 8. Bd3 {[%clk
0:02:56]} 8... Bb4+ {[%clk 0:02:50.4]} 9. Nc3 {[%clk 0:02:47.7]} 9... O-O {[%clk
0:02:47.5]} 10. O-O {[%clk 0:02:47.2]} 10... d5 {[%clk 0:02:40.6]} 11. Qh5
{[%clk 0:02:16]} 11... g6 {[%clk 0:02:40.1]} 12. Qh6 {[%clk 0:02:15.9]} 12...
Re8 {[%clk 0:02:34.3]} 13. Bg5 {[%clk 0:02:00.4]} 13... Qd7 {[%clk 0:02:32.5]}
14. Bf6 {[%clk 0:01:55.9]} 14... Bf8 {[%clk 0:02:32.1]} 15. Qh4 {[%clk
0:01:56.5]} 15... Qg4 {[%clk 0:02:28.4]} 16. Qxg4 {[%clk 0:01:49.1]} 16... Bxg4
{[%clk 0:02:29.3]} 17. cxd5 {[%clk 0:01:48.1]} 17... cxd5 {[%clk 0:02:22.1]} 18.
Bb5 {[%clk 0:01:46.3]} 18... Rec8 {[%clk 0:01:06.5]} 19. h3 {[%clk 0:01:31.6]}
19... Be6 {[%clk 0:01:04.4]} 20. Ba6 {[%clk 0:01:22.2]} 20... Re8 {[%clk
0:00:57.6]} 21. Nb5 {[%clk 0:01:22]} 21... Bc8 {[%clk 0:00:45.8]} 22. Nxc7
{[%clk 0:01:10.7]} 22... Bxa6 {[%clk 0:00:45.6]} 23. Nxa6 {[%clk 0:01:11.2]}
23... Rac8 {[%clk 0:00:46.1]} 24. Rac1 {[%clk 0:01:07.8]} 24... Nc4 {[%clk
0:00:41.4]} 25. b3 {[%clk 0:01:02.2]} 25... Nd2 {[%clk 0:00:38.7]} 26. Rfd1
{[%clk 0:00:57.7]} 26... Ne4 {[%clk 0:00:34.2]} 27. Rxc8 {[%clk 0:00:54.6]}
27... Rxc8 {[%clk 0:00:35.1]} 28. Rxd5 {[%clk 0:00:50.3]} 28... Nxf6 {[%clk
0:00:34.4]} 29. exf6 {[%clk 0:00:49]} 29... Rc6 {[%clk 0:00:31.3]} 30. Nb8
{[%clk 0:00:27.8]} 30... Rc1+ {[%clk 0:00:20.4]} 31. Kh2 {[%clk 0:00:27.2]}
31... Rc8 {[%clk 0:00:03.4]} 32. Nd7 {[%clk 0:00:26.1]} 32... Bb4 {[%clk
0:00:02.5]} 33. g3 {[%clk 0:00:24]} 33... h6 {[%clk 0:00:01.7]} 34. Kg2 {[%clk
0:00:21.6]} 34... g5 {[%clk 0:00:01.6]} 35. h4 {[%clk 0:00:20.9]} 35... Kh7
{[%clk 0:00:02]} 36. h5 {[%clk 0:00:20.8]} 36... Rd8 {[%clk 0:00:01.1]} 37. g4
{[%clk 0:00:20.1]} 1-0

[Event "*** Titled Tuesday Blitz"]
[Site "Chess.com"]
[Date "2021.02.09"]
[Round "6"]
[White "Ajedrez_con_German"]
[Black "Xeniya2005"]
[Result "1-0"]
[WhiteElo "2581"]
[BlackElo "2347"]
[TimeControl "180+1"]
[EndTime "11:08:20 PST"]
[Termination "Ajedrez_con_German won by resignation"]

1. c4 {[%clk 0:03:00.9]} 1... e5 {[%clk 0:02:59.7]} 2. g3 {[%clk 0:02:59.7]}
2... Nf6 {[%clk 0:02:58.4]} 3. Bg2 {[%clk 0:03:00.1]} 3... Be7 {[%clk
0:02:55.2]} 4. Nc3 {[%clk 0:02:59.5]} 4... O-O {[%clk 0:02:54.9]} 5. e3 {[%clk
0:02:57.4]} 5... Nc6 {[%clk 0:02:54.8]} 6. Nge2 {[%clk 0:02:56.6]} 6... d6
{[%clk 0:02:51.6]} 7. O-O {[%clk 0:02:55]} 7... Bf5 {[%clk 0:02:50.3]} 8. d4
{[%clk 0:02:52]} 8... exd4 {[%clk 0:02:48.6]} 9. Nxd4 {[%clk 0:02:51.8]} 9...
Nxd4 {[%clk 0:02:47.6]} 10. Qxd4 {[%clk 0:02:52.7]} 10... c6 {[%clk 0:02:47]}
11. b3 {[%clk 0:02:52.8]} 11... Qc7 {[%clk 0:02:29.6]} 12. Bb2 {[%clk
0:02:52.8]} 12... Rad8 {[%clk 0:02:27.5]} 13. Rad1 {[%clk 0:02:53]} 13... Rfe8
{[%clk 0:02:23.5]} 14. Qxa7 {[%clk 0:02:44.8]} 14... Nd7 {[%clk 0:02:06.7]} 15.
Qd4 {[%clk 0:02:40.8]} 15... Bf6 {[%clk 0:02:00.1]} 16. Qd2 {[%clk 0:02:40.7]}
16... Nc5 {[%clk 0:01:57.2]} 17. h3 {[%clk 0:02:32.4]} 17... Qa5 {[%clk
0:01:51.4]} 18. Ba1 {[%clk 0:01:57.9]} 18... h6 {[%clk 0:01:45.5]} 19. Kh2
{[%clk 0:01:57]} 19... Qc7 {[%clk 0:01:40.4]} 20. Ne2 {[%clk 0:01:46.9]} 20...
Bxa1 {[%clk 0:01:38.7]} 21. Rxa1 {[%clk 0:01:47.7]} 21... Be4 {[%clk 0:01:33.4]}
22. Nc3 {[%clk 0:01:44.8]} 22... Bxg2 {[%clk 0:01:31.5]} 23. Kxg2 {[%clk
0:01:45.7]} 23... Qe7 {[%clk 0:01:30]} 24. Rad1 {[%clk 0:01:44.6]} 24... Kh7
{[%clk 0:01:26.9]} 25. Qc2+ {[%clk 0:01:44.1]} 25... g6 {[%clk 0:01:26.3]} 26.
Rd4 {[%clk 0:01:43.8]} 26... Rd7 {[%clk 0:01:25.1]} 27. Rfd1 {[%clk 0:01:43.4]}
27... Red8 {[%clk 0:01:25.6]} 28. Ne4 {[%clk 0:01:40.4]} 28... Ne6 {[%clk
0:01:23.7]} 29. R4d2 {[%clk 0:01:34.3]} 29... f5 {[%clk 0:01:12.3]} 30. Nc3
{[%clk 0:01:34.3]} 30... Qg5 {[%clk 0:01:10.5]} 31. Ne2 {[%clk 0:01:24.2]} 31...
Nc5 {[%clk 0:01:07.7]} 32. Nf4 {[%clk 0:01:16.6]} 32... Qe7 {[%clk 0:01:00.6]}
33. h4 {[%clk 0:01:10.7]} 33... Ne4 {[%clk 0:00:59.7]} 34. Rd4 {[%clk
0:01:07.2]} 34... Qe5 {[%clk 0:00:48.1]} 35. Ne2 {[%clk 0:00:59]} 35... g5
{[%clk 0:00:41]} 36. hxg5 {[%clk 0:00:58.1]} 36... hxg5 {[%clk 0:00:40.5]} 37.
Nc3 {[%clk 0:00:36.8]} 37... Nxc3 {[%clk 0:00:32.4]} 38. Qxc3 {[%clk 0:00:37]}
38... g4 {[%clk 0:00:23.9]} 39. Qd3 {[%clk 0:00:33.1]} 39... Kg6 {[%clk
0:00:21]} 40. e4 {[%clk 0:00:28.9]} 40... f4 {[%clk 0:00:19.1]} 41. gxf4 {[%clk
0:00:28.8]} 41... Qxf4 {[%clk 0:00:18]} 42. e5+ {[%clk 0:00:29.4]} 42... Qf5
{[%clk 0:00:17.6]} 43. Rxg4+ {[%clk 0:00:27.7]} 1-0

[Event "*** Titled Tuesday Blitz"]
[Site "Chess.com"]
[Date "2021.02.09"]
[Round "6"]
[White "Kale36"]
[Black "chessmadara"]
[Result "0-1"]
[WhiteElo "2234"]
[BlackElo "2162"]
[TimeControl "180+1"]
[EndTime "11:08:21 PST"]
[Termination "chessmadara won by resignation"]

1. d4 {[%clk 0:02:59.1]} 1... Nf6 {[%clk 0:02:59.3]} 2. Nc3 {[%clk 0:02:58.7]}
2... d5 {[%clk 0:02:58.6]} 3. Bg5 {[%clk 0:02:58.6]} 3... g6 {[%clk 0:02:56.6]}
4. Qd2 {[%clk 0:02:57.9]} 4... Bg7 {[%clk 0:02:56.4]} 5. Bh6 {[%clk 0:02:58.1]}
5... O-O {[%clk 0:02:54.6]} 6. h4 {[%clk 0:02:56.9]} 6... c5 {[%clk 0:02:47.3]}
7. Bxg7 {[%clk 0:02:55.6]} 7... Kxg7 {[%clk 0:02:46.8]} 8. O-O-O {[%clk
0:02:51.3]} 8... cxd4 {[%clk 0:02:45.8]} 9. Qxd4 {[%clk 0:02:51.2]} 9... Nc6
{[%clk 0:02:46.3]} 10. Qd2 {[%clk 0:02:41]} 10... d4 {[%clk 0:02:39.2]} 11. Nb5
{[%clk 0:02:37.9]} 11... e5 {[%clk 0:02:35.8]} 12. h5 {[%clk 0:02:31.6]} 12...
Be6 {[%clk 0:02:33.2]} 13. hxg6 {[%clk 0:02:29.1]} 13... fxg6 {[%clk 0:02:32.7]}
14. Qh6+ {[%clk 0:02:29.2]} 14... Kg8 {[%clk 0:02:32.2]} 15. e3 {[%clk
0:02:28.2]} 15... Qa5 {[%clk 0:02:20.5]} 16. Na3 {[%clk 0:02:20.3]} 16... Bxa2
{[%clk 0:02:04.1]} 17. Nf3 {[%clk 0:02:19.5]} 17... Rf7 {[%clk 0:01:40.7]} 18.
Ng5 {[%clk 0:02:14.9]} 18... Re7 {[%clk 0:01:31.7]} 19. Bd3 {[%clk 0:02:05.9]}
19... e4 {[%clk 0:01:22.8]} 20. Bb5 {[%clk 0:01:59.1]} 20... d3 {[%clk 0:01:10]}
21. Nxh7 {[%clk 0:01:44.9]} 21... Nxh7 {[%clk 0:01:08.8]} 22. Qxg6+ {[%clk
0:01:45.1]} 22... Kh8 {[%clk 0:01:08]} 23. Bc4 {[%clk 0:01:37.8]} 23... Bxc4
{[%clk 0:01:02.9]} 24. Nxc4 {[%clk 0:01:37.1]} 24... Qc5 {[%clk 0:00:50.3]} 25.
cxd3 {[%clk 0:01:15.9]} 25... exd3 {[%clk 0:00:42]} 26. Qxd3 {[%clk 0:01:16.8]}
26... Ne5 {[%clk 0:00:39.8]} 27. Qc3 {[%clk 0:01:16.7]} 27... Qxc4 {[%clk
0:00:37.4]} 28. Qxc4 {[%clk 0:01:12.5]} 28... Nxc4 {[%clk 0:00:37.4]} 29. Rd4
{[%clk 0:01:12.3]} 29... Rc8 {[%clk 0:00:36]} 30. Kb1 {[%clk 0:01:10.9]} 30...
Ne5 {[%clk 0:00:28.2]} 31. Rhd1 {[%clk 0:01:07.9]} 31... Nf6 {[%clk 0:00:19.5]}
32. Rd6 {[%clk 0:00:52.9]} 32... Nfg4 {[%clk 0:00:17.9]} 33. R1d2 {[%clk
0:00:41.8]} 33... Kg7 {[%clk 0:00:17.2]} 34. e4 {[%clk 0:00:37.8]} 34... Nc4
{[%clk 0:00:17.3]} 35. f3 {[%clk 0:00:35]} 35... Nxd2+ {[%clk 0:00:17.1]} 36.
Rxd2 {[%clk 0:00:35.9]} 36... Ne3 {[%clk 0:00:16.8]} 37. Re2 {[%clk 0:00:29.1]}
37... Nc4 {[%clk 0:00:16.4]} 38. Rc2 {[%clk 0:00:28.4]} 38... b5 {[%clk
0:00:16]} 39. Ka2 {[%clk 0:00:26.3]} 39... Re6 {[%clk 0:00:13]} 40. b3 {[%clk
0:00:26.4]} 40... Ra6+ {[%clk 0:00:12.8]} 41. Kb1 {[%clk 0:00:26.7]} 41... Na3+
{[%clk 0:00:12.8]} 0-1